Workbook

Sheet Wood Stiffnesses
A1: Data Entry
H2: Example 1 | I2: Example 2
A3: Wood Type: (enter m or s) | B3: m | H3: m | I3: s
A5: Temperature | B5: 72 | H5: 72 | I5: 72
A6: Humidity | B6: 32 | H6: 32 | I6: 32
A7: Date of Measurement | B7: 2017-12-15 | H7: 2011-06-06 | I7: 2011-06-06
A9: Dimensions in MM
A10: Length | B10: 412 | H10: 412 | I10: 374
A11: Width | B11: 210 | H11: 210 | I11: 221
A12: Center Thickness | B12: 20.9 | H12: 20.9 | I12: 22.5
A13: Left Edge Thickness | B13: 8 | H13: 8 | I13: 8.4
A14: Right Edge Thickness | B14: 7 | H14: 7 | I14: 5.8
A16: Weight (gm) | B16: 706.9 | H16: 706.9 | I16: 443.1
A18: Frequencies in Hz
A19: Shear | B19: 318 | H19: 318 | I19: 330
A20: Across | B20: 687 | H20: 687 | I20: 526
A21: Along | B21: 369 | H21: 369 | I21: 648
A22: Q-Across
A23: Q-Along
A25: Lucchi Measurements
A26: Across | B26: 2200
A27: Along | B27: 4600
A28: Calculated Values | D28: Calculated Values
D29: Rogers | F29: Lucchi
A30: Density | D30: 0.5753778333 | F30: =B16*1000/((0.5*B11*B10)*(B13+B14)+(0.5*B11*((B12-B13)+(B12-B14))*B10/2)) -> 0.5753778333 | H30: =H16*1000/((0.5*H11*H10)*(H13+H14)+(0.5*H11*((H12-H13)+(H12-H14))*H10/2)) -> 0.5753778333 | I30: =I16*1000/((0.5*I11*I10)*(I13+I14)+(0.5*I11*((I12-I13)+(I12-I14))*I10/2)) -> 0.3622231131
A32: Stiffness in Mpa
A33: Shear (G/TL) | D33: 226.24 | F33: NA | H33: 226.24 | I33: 76.5
A34: Across (E/RR) | D34: 257.2 | F34: =B26*B26*F30/10000 -> 278.4828713 | H34: 257.2 | I34: 77.98
A35: Along (E/LL) | D35: 1270 | F35: =B27*B27*F30/10000 -> 1217.499495 | H35: 1270 | I35: 1172.6
A37: Speed of Sound
A38: Across Grain | D38: =SQRT(D34*10000/D30) -> 2114.262558 | F38: =B26 -> 2200 | H38: =SQRT(H34*10000/H30) -> 2114.262558 | I38: =SQRT(I34*10000/I30) -> 1467.248033
A39: Along Grain | D39: =SQRT(D35*10000/D30) -> 4698.132893 | F39: =B27 -> 4600 | H39: =SQRT(H35*10000/H30) -> 4698.132893 | I39: =SQRT(I35*10000/I30) -> 5689.667215
A41: Index of Quality | B41: Dutch | D41: 9.933086469 | F41: =SQRT(F34*F35)/(F30*100) -> 10.12 | H41: =SQRT(H34*H35)/(H30*100) -> 9.933086469 | I41: =SQRT(I34*I35)/(I30*100) -> 8.348153032
B42: Schleske | D42: =D39/(D30*1000) -> 8.16530047 | F42: =F39/(F30*1000) -> 7.99474664 | H42: =H39/(H30*1000) -> 8.16530047 | I42: =I39/(I30*1000) -> 15.70763159
A43: Indices of Merit (Barlow)
A44: 'average response' aka 'radiation ratio' | D44: =POWER(D39*D38,0.25)/POWER(D30,3/2) -> 128.6297318 | F44: =POWER(B26*B27,0.25)/POWER(F30,3/2) -> 129.2306231
A45: 'peak response' | D45: =SQRT(B22*B23)*POWER(D39*D38,0.25)/POWER(D30,3/2) -> 0 | F45: =SQRT(B22*B23)*POWER(B26*B27,0.25)/POWER(F30,3/2) -> 0
A46: (high values are better for all indices)

Sheet How to find frequencies of wood
